bitfinex/quotes_SOLUSD_20260119
["timestamp","ask_amount","ask_price","bid_price","bid_amount"]
[1768828202043,0.1,134.01,133.99,5.16218875]
[1768828202229,0.1,134.02,134.01,2.16681096]
[1768828202435,0.1,134.02,134.01,2.10681096]
[1768828208757,7.24616211,134.03,134.01,2.10681096]
[1768828209855,9.48406957,134.03,134.01,2.10681096]
[1768828211654,7.24616211,134.03,134.01,2.10681096]
[1768828212357,9.69853842,134.04,134.01,2.10681096]
[1768828216848,2.23790746,134.03,134.0,5.16218875]
[1768828217154,2.23790746,134.03,134.01,2.16681096]
[1768828218558,9.69853842,134.04,134.01,2.16681096]
[1768828219948,9.69900438,134.03,134.01,2.16681096]
[1768828220667,9.69900438,134.03,134.0,5.30435032]
[1768828222471,9.69900438,134.03,134.0,2.30897253]
[1768828222968,9.69900438,134.03,134.0,2.16681096]
[1768828223468,2.20959861,134.02,133.99,2.1308396]
[1768828223770,5.2049764,134.02,133.99,2.1308396]
[1768828224464,12.6669639,134.02,133.99,2.1308396]
[1768828225962,9.67158611,134.02,133.99,2.1308396]
[1768828235483,2.20959861,134.02,133.99,2.1308396]
[1768828236987,2.20959861,134.03,134.0,2.1308396]
[1768828245064,9.67067367,134.03,134.0,2.1308396]
[1768828245268,12.66605146,134.03,134.0,2.1308396]
[1768828246381,10.45645285,134.03,134.0,2.1308396]
[1768828246588,2.10729315,134.02,134.0,2.1308396]
[1768828248899,9.56900152,134.02,134.0,2.1308396]
[1768828249695,7.46170837,134.02,134.0,2.1308396]
[1768828254603,2.17748061,134.01,133.99,2.1110848]
[1768828254898,2.17748061,133.99,133.96,2.1110848]
[1768828255116,5.17247552,134.0,133.96,2.1110848]
[1768828255308,2.17748061,134.0,133.97,2.1110848]
[1768828255680,9.64033694,134.0,133.97,2.1110848]
[1768828257913,12.63533185,134.0,133.97,2.1110848]
[1768828261313,9.64033694,134.0,133.97,2.1110848]
[1768828261514,12.63533185,134.0,133.97,2.1110848]
[1768828262322,2.17748061,133.99,133.97,2.1110848]
[1768828263320,9.64033694,134.0,133.97,2.1110848]
[1768828263512,12.63533185,134.0,133.97,2.1110848]
[1768828266720,7.46435769,133.97,133.94,0.14216157]
[1768828266900,9.6418383,133.97,133.93,78.94]
[1768828267101,12.63683321,133.97,133.93,16.34]
[1768828267407,12.63683321,133.97,133.94,0.14216157]
[1768828267607,12.63683321,133.97,133.93,16.34]
[1768828268116,12.63683321,133.97,133.94,0.14216157]
[1768828268717,12.63683321,133.97,133.94,2.25324637]
[1768828269493,12.63683321,133.97,133.94,2.1110848]
[1768828270329,2.17748061,133.96,133.94,2.1110848]
[1768828271117,5.17247552,133.96,133.94,2.1110848]
[1768828272137,12.63760054,133.96,133.94,2.1110848]
[1768828273026,9.64260563,133.96,133.94,2.1110848]
[1768828274197,7.40512503,133.96,133.94,2.1110848]
[1768828274409,9.58260564,133.96,133.94,2.1110848]
[1768828276004,9.58260564,133.96,133.92,2.1110848]
[1768828276205,9.58260564,133.96,133.93,2.1110848]
[1768828276621,12.57760055,133.96,133.93,2.1110848]
[1768828283029,9.58260564,133.96,133.93,2.1110848]
[1768828283231,12.57760055,133.96,133.93,2.1110848]
[1768828291340,9.58260564,133.96,133.93,2.1110848]
[1768828291513,12.57760055,133.96,133.93,2.1110848]
[1768828294238,9.58260564,133.96,133.93,2.1110848]
[1768828294540,12.57760055,133.96,133.93,2.1110848]
[1768828301941,9.58260564,133.96,133.93,2.1110848]
[1768828302125,12.57760055,133.96,133.93,2.1110848]
[1768828302425,12.51760056,133.96,133.93,2.1110848]
[1768828302626,9.52260565,133.96,133.93,2.1110848]
[1768828302824,12.51760056,133.96,133.93,2.1110848]
[1768828304234,2.14504072,133.95,133.93,2.1110848]
[1768828306422,2.08504073,133.95,133.93,2.1110848]
[1768828313148,7.34512504,133.96,133.93,2.1110848]
[1768828313149,9.56387763,133.96,133.93,2.1110848]
[1768828313445,12.5620865,133.96,133.93,2.1110848]
[1768828320448,9.56387763,133.96,133.93,2.1110848]
[1768828320749,12.5620865,133.96,133.93,2.1110848]
[1768828322155,9.56387763,133.96,133.93,2.1110848]
[1768828323051,28.34096338,133.99,133.95,2.02752107]
[1768828323429,31.33917225,133.99,133.95,2.02752107]
[1768828326460,2.21875259,133.98,133.95,2.02752107]
[1768828326662,9.62289799,133.98,133.95,2.02752107]
[1768828330359,7.46414539,133.98,133.95,2.02752107]
[1768828331459,7.46347639,133.99,133.97,2.02752107]
[1768828333954,9.68222898,133.99,133.97,2.02752107]
[1768828348778,28.21944718,134.0,133.97,2.02752107]
[1768828352175,26.11984802,134.0,133.97,2.02752107]
[1768828352479,2.09959916,133.99,133.96,2.03291613]
[1768828354182,2.09959916,133.99,133.96,5.031125]
[1768828356879,2.09959916,134.03,133.97,2.03291613]
[1768828357063,2.09959916,134.0,133.97,2.03291613]
[1768828358490,7.46324352,133.99,133.97,2.03291613]
[1768828360283,2.12838957,133.99,133.97,2.03291613]
[1768828364883,9.59107613,134.0,133.97,2.03291613]
[1768828367686,7.46268656,134.0,133.97,2.03291613]
[1768828368187,9.59107613,134.0,133.97,2.03291613]
[1768828369393,9.59079184,134.01,133.98,2.15807382]
[1768828370677,9.59079184,134.01,133.98,5.15628269]
[1768828370884,9.59079184,134.01,133.98,2.15807382]
[1768828372390,2.12838957,134.0,133.98,2.15807382]
[1768828372889,9.54246366,134.01,133.98,2.15807382]
[1768828374592,2.08006139,134.01,133.99,2.1707629]
[1768828374885,9.54184477,134.02,133.99,5.16585227]
[1768828376986,9.54184477,134.02,133.99,2.1707629]
[1768828382695,9.54184477,134.02,133.99,5.16585227]
[1768828382896,9.54184477,134.02,133.99,2.1707629]
[1768828391901,2.08006139,134.0,133.97,2.1707629]
[1768828392105,5.07515076,134.0,133.97,2.1707629]
[1768828392404,2.08006139,134.0,133.97,2.1707629]
[1768828393278,9.54308464,134.0,133.97,2.1707629]
[1768828396277,9.54308464,134.0,133.97,5.16585227]
[1768828396497,7.46302325,134.0,133.98,2.1707629]
[1768828398406,9.54246555,134.01,133.98,2.1707629]
[1768828400806,2.08006139,134.0,133.98,2.1707629]
[1768828407416,2.00641261,133.99,133.93,2.21456153]
[1768828407619,2.00641261,133.98,133.93,2.21456153]
[1768828407820,2.00641261,133.97,133.93,2.21456153]
[1768828408999,9.47124728,133.97,133.93,2.21456153]
[1768828410108,2.00641261,133.93,133.91,2.21456153]
[1768828411201,9.4731192,133.93,133.91,2.21456153]
[1768828412410,2.00641261,133.95,133.92,1.91078343]
[1768828412918,2.00641261,133.95,133.91,2.052945]
[1768828414509,9.47217909,133.95,133.91,2.052945]
[1768828414816,2.00641261,133.94,133.91,2.052945]
[1768828417710,2.00641261,133.93,133.9,1.90996593]
[1768828418212,2.00641261,133.97,133.93,1.90917745]
[1768828418417,2.00641261,133.97,133.94,1.90917745]
[1768828418825,9.4713275,133.96,133.93,1.90917745]
[1768828419007,2.00641261,133.95,133.92,2.05055959]
[1768828420734,2.00641261,133.95,133.92,9.51769361]
[1768828422916,2.00641261,133.95,133.93,1.90611306]
[1768828423806,2.00641261,133.95,133.91,21.2604582]
[1768828424342,2.00641261,133.95,133.92,1.90463315]
[1768828424818,2.00641261,133.94,133.91,18.26463315]
[1768828425013,2.00641261,133.94,133.91,1.90463315]
[1768828425416,12.46667967,133.96,133.92,1.90390592]
[1768828426111,2.00641261,133.95,133.92,1.90390592]
[1768828439143,2.00641261,133.95,133.92,9.37103903]
[1768828439442,2.00641261,133.95,133.92,1.90390592]
[1768828441746,2.07721537,133.94,133.91,9.36020175]
[1768828444547,2.07721537,133.94,133.9,19.35811908]
[1768828444848,2.07721537,133.94,133.88,71.9600747]
[1768828444849,2.07721537,133.92,133.88,71.9600747]
[1768828445019,5.07533445,133.92,133.88,9.3600747]
[1768828445221,2.07721537,133.91,133.87,18.45042363]
[1768828446549,2.07721537,133.91,133.87,25.92024269]
[1768828447134,2.07721537,133.9,133.87,16.56]
[1768828447829,2.07721537,133.89,133.87,0.2]
[1768828454264,2.07721537,133.88,133.87,0.2]
[1768828456146,2.07721537,133.87,133.85,0.2]
[1768828456354,2.07721537,133.86,133.85,0.2]
[1768828458665,2.07721537,133.85,133.84,0.2]
[1768828461064,10.46861063,133.86,133.84,0.2]
[1768828461065,12.545826,133.86,133.84,0.2]
[1768828461361,2.07721537,133.86,133.84,0.2]
[1768828462052,2.01721538,133.86,133.84,0.2]
[1768828467771,9.48772141,133.86,133.84,0.2]
[1768828469467,9.42772142,133.86,133.84,0.2]
[1768828471070,12.4258405,133.86,133.84,0.2]
[1768828473454,9.42772142,133.86,133.84,0.2]
[1768828475052,9.42772142,133.86,133.84,2.27358909]
[1768828475963,9.36772143,133.86,133.84,0.2]
[1768828477372,2.99811908,133.88,133.84,2.27358909]
[1768828477857,1.99350253,133.87,133.84,2.27358909]
[1768828478878,9.46334219,133.88,133.85,2.07358909]
[1768828479286,12.46146127,133.88,133.85,2.07358909]
[1768828479458,9.46334219,133.88,133.85,2.07358909]
[1768828481860,1.99350253,133.89,133.87,2.07358909]
[1768828483580,1.99350253,133.89,133.86,16.36]
[1768828483770,1.99350253,133.89,133.86,18.43358909]
[1768828484082,1.99350253,133.89,133.86,21.43170817]
[1768828485287,1.99350253,133.89,133.86,18.43358909]
[1768828485466,1.99350253,133.89,133.86,21.43170817]
[1768828486006,1.99350253,133.88,133.86,16.36]
[1768828488287,9.46300195,133.88,133.86,16.36]
[1768828498200,3.00099058,133.89,133.86,18.41312835]
[1768828498201,9.63764309,133.89,133.86,18.41312835]
[1768828498379,2.16839514,133.93,133.88,0.14216157]
[1768828498694,2.16839514,133.91,133.88,16.36]
[1768828499996,9.6362467,133.91,133.88,16.36]
[1768828500506,2.16839514,133.9,133.88,16.36]
[1768828500676,7.46785156,133.91,133.85,0.090524]
[1768828500677,2.16839514,133.88,133.85,0.090524]
[1768828500866,2.16839514,133.87,133.85,0.090524]
[1768828501795,2.16839514,133.9,133.86,3.00099058]
[1768828502095,9.63702505,133.9,133.87,3.00099058]
[1768828502269,2.16839514,133.89,133.87,3.00099058]
[1768828503383,9.63725095,133.89,133.87,3.00099058]
[1768828505503,9.63725095,133.89,133.86,5.05411893]
[1768828506597,9.63725095,133.89,133.86,2.05312835]
[1768828506814,9.63725095,133.89,133.86,5.05411893]
[1768828507296,2.16839514,133.91,133.88,5.05411893]
[1768828507479,2.16839514,133.91,133.89,3.00099058]
[1768828507678,2.16839514,133.9,133.86,2.05312835]
[1768828507895,2.16839514,133.9,133.86,5.05411893]
[1768828508103,2.16839514,133.9,133.87,2.05312835]
[1768828509001,26.12979948,133.95,133.89,2.05312835]
[1768828509177,26.12979948,133.95,133.9,5.05411893]
[1768828509178,2.16839514,133.94,133.9,5.05411893]
[1768828509694,2.16839514,133.94,133.91,2.05312835]
[1768828510187,9.63498216,133.93,133.91,2.05312835]
[1768828513585,2.16839514,133.89,133.86,2.05312835]
[1768828514706,9.63748382,133.89,133.86,2.05312835]
[1768828515002,28.30952803,133.89,133.86,2.05312835]
[1768828515584,9.63682858,133.9,133.87,2.05312835]
[1768828515981,9.63620148,133.91,133.87,5.05411893]
[1768828516283,7.46780634,133.91,133.89,2.05312835]
[1768828516590,9.63565827,133.92,133.89,2.05312835]
[1768828517006,9.63530454,133.93,133.89,2.05312835]
[1768828517184,9.63530454,133.93,133.9,2.05312835]
[1768828517495,7.4669094,133.93,133.9,2.05312835]
[1768828517893,7.4669094,133.93,133.88,23.82933209]
[1768828517894,2.16839514,133.92,133.88,2.05312835]
[1768828519305,9.63587225,133.92,133.88,2.05312835]
[1768828520701,9.63587225,133.92,133.89,2.05312835]
[1768828520887,7.46747711,133.92,133.89,2.05312835]
[1768828524912,9.52686788,133.92,133.89,2.05312835]
[1768828527014,12.52725825,133.93,133.89,2.05312835]
[1768828528291,2.05939077,133.92,133.89,2.05312835]
[1768828531518,9.52542033,133.94,133.9,2.14051289]
[1768828532107,2.05939077,133.96,133.91,2.14051289]
[1768828532310,2.05939077,133.96,133.93,2.14051289]
[1768828533411,9.52454098,133.96,133.93,2.14051289]
[1768828539399,2.05939077,133.94,133.91,2.28267446]
[1768828542128,9.52549381,133.94,133.91,2.28267446]
[1768828560833,9.52549381,133.94,133.91,2.14051289]
[1768828561219,2.06868779,133.93,133.9,16.36]
[1768828561608,2.06868779,133.93,133.9,18.52605013]
[1768828562633,9.53534131,133.93,133.9,18.52605013]
[1768828563139,9.53534131,133.93,133.9,2.16605013]
[1768828568240,2.06868779,133.93,133.9,2.16605013]
[1768828570040,9.53532006,133.93,133.9,2.16605013]
[1768828570933,2.06868779,133.92,133.9,0.14216157]
[1768828571133,2.0086878,133.92,133.9,0.14216157]
[1768828571357,2.0086878,133.92,133.9,2.3082117]
[1768828571858,7.46663227,133.93,133.9,2.3082117]
[1768828573167,2.06868779,133.92,133.9,2.3082117]
[1768828573465,2.06868779,133.92,133.89,18.52605013]
[1768828574649,2.06868779,133.92,133.89,16.36]
[1768828574650,2.06868779,133.91,133.89,16.36]
[1768828574848,2.06868779,133.91,133.88,2.16605013]
[1768828575049,7.46825989,133.9,133.88,2.16605013]
[1768828577759,10.46665891,133.9,133.88,2.16605013]
[1768828578060,7.46825989,133.9,133.88,2.16605013]
[1768828579161,9.53694768,133.9,133.87,18.52605013]
[1768828579347,2.06868779,133.88,133.86,0.14216157]
[1768828579546,2.06868779,133.88,133.86,2.16605013]
[1768828579743,9.53813407,133.88,133.86,2.16605013]
[1768828579946,12.53653309,133.88,133.85,18.61657413]
[1768828580155,2.06868779,133.86,133.84,0.2]
[1768828580355,5.00708682,133.86,133.84,0.2]
[1768828581079,2.0086878,133.86,133.84,0.2]
[1768828581248,9.47942977,133.86,133.84,0.2]
[1768828581848,2.0086878,133.86,133.84,2.36605013]
[1768828583047,1.94868781,133.86,133.84,2.36605013]
[1768828583240,21.67183792,133.88,133.83,0.2]
[1768828583241,18.6734389,133.88,133.83,0.2]
[1768828583466,2.99839902,133.84,133.82,2.19161614]
[1768828583859,2.99839902,133.83,133.81,0.2]
[1768828584460,2.99839902,133.82,133.81,0.2]
[1768828584653,2.93839903,133.82,133.81,0.2]
[1768828585265,2.08740659,133.81,133.79,0.2]
[1768828585474,5.02580562,133.81,133.79,0.2]
[1768828586154,2.0274066,133.81,133.79,0.2]
[1768828589652,9.50115055,133.81,133.79,0.2]
[1768828589852,9.50115055,133.81,133.78,2.19161614]
[1768828595580,9.44115056,133.81,133.78,2.19161614]
[1768828601694,5.11975741,133.82,133.79,2.28629271]
[1768828602172,2.12135839,133.82,133.79,2.28629271]
[1768828602985,2.12135839,133.82,133.79,5.28469173]
[1768828604690,9.59411589,133.82,133.79,5.28469173]
[1768828605184,9.59411589,133.82,133.79,2.28629271]
[1768828605487,9.59411589,133.82,133.79,5.28469173]
[1768828609083,9.59373866,133.83,133.8,2.14413114]
[1768828609282,9.59373866,133.83,133.8,5.14253016]
[1768828609485,9.59373866,133.83,133.8,2.14413114]
[1768828609689,9.59373866,133.83,133.8,5.14253016]
[1768828611101,9.59373866,133.83,133.8,2.14413114]
[1768828611588,2.12135839,133.82,133.78,2.48629271]
[1768828611791,2.12135839,133.81,133.78,2.48629271]
[1768828612688,9.5947798,133.81,133.78,2.48629271]
[1768828617191,12.59911393,133.81,133.78,2.48629271]
[1768828617493,9.5947798,133.81,133.78,2.48629271]
[1768828618390,1.9624751,133.8,133.78,0.34216157]
[1768828619276,1.9624751,133.8,133.78,0.2]
[1768828620491,1.9624751,133.79,133.78,0.2]
[1768828620694,1.90247511,133.79,133.78,0.2]
[1768828620888,1.90247511,133.79,133.77,0.2]
[1768828621390,1.90247511,133.79,133.75,0.34216157]
[1768828621391,3.00433413,133.78,133.75,0.34216157]
[1768828621575,7.47459299,133.79,133.75,0.2]
[1768828621776,26.16059343,133.79,133.75,0.2]
[1768828622102,7.47459299,133.79,133.75,2.3237485]
[1768828622388,7.47407683,133.8,133.76,2.1237485]
[1768828622598,9.43655193,133.8,133.76,5.12808263]
[1768828622778,1.9624751,133.79,133.76,5.12808263]
[1768828623674,1.9624751,133.79,133.76,2.1237485]
[1768828623879,1.9624751,133.79,133.76,5.12808263]
[1768828624993,1.9624751,133.79,133.76,2.1237485]
[1768828625197,1.9624751,133.78,133.76,0.14216157]
[1768828625384,1.90247511,133.78,133.75,2.3237485]
[1768828625893,10.47930541,133.78,133.75,0.2]
[1768828626104,3.00433413,133.77,133.75,0.2]
[1768828626300,2.94433414,133.77,133.74,0.2]
[1768828626488,2.94433414,133.77,133.74,0.34216157]
[1768828626797,2.94433414,133.77,133.74,0.2]
[1768828626996,2.94433414,133.77,133.74,0.34216157]
[1768828627294,1.9624751,133.77,133.74,0.34216157]
[1768828627496,4.96680923,133.77,133.74,2.46591007]
[1768828627688,1.9624751,133.77,133.74,2.46591007]
[1768828629584,1.9624751,133.77,133.74,2.3237485]
[1768828629789,1.90247511,133.77,133.74,2.3237485]
[1768828629989,9.37806414,133.77,133.74,2.3237485]
[1768828630380,1.90247511,133.77,133.74,2.3237485]
[1768828630883,9.37808384,133.77,133.74,2.3237485]
[1768828631996,1.9624751,133.76,133.74,2.3237485]
[1768828633100,1.9624751,133.76,133.74,0.34216157]
[1768828633786,1.9624751,133.76,133.74,2.46591007]
[1768828634306,1.9624751,133.77,133.74,2.46591007]
[1768828635399,1.9624751,133.77,133.74,0.34216157]
[1768828635586,1.9624751,133.76,133.74,0.34216157]
[1768828635788,1.90247511,133.76,133.74,0.34216157]
[1768828636384,1.84247512,133.76,133.74,0.34216157]
[1768828637209,1.84247512,133.76,133.74,2.46591007]
[1768828638103,7.47567244,133.77,133.74,2.46591007]
[1768828638306,7.47521057,133.78,133.74,2.46591007]
[1768828638493,9.43768567,133.78,133.75,2.1237485]
[1768828638695,1.9624751,133.78,133.75,2.1237485]
[1768828638891,1.9624751,133.78,133.75,5.12808263]
[1768828639091,9.4370241,133.79,133.76,2.1237485]
[1768828639486,1.9624751,133.78,133.76,2.1237485]
[1768828641910,1.9624751,133.79,133.76,2.1237485]
[1768828642097,9.43631665,133.8,133.76,2.1237485]
[1768828643306,9.43631665,133.8,133.76,3.00433413]
[1768828643507,9.43631665,133.8,133.77,1.99814502]
[1768828648406,1.9624751,133.8,133.77,1.99814502]
[1768828650307,9.43632919,133.8,133.77,1.99814502]
[1768828650514,12.59443226,133.8,133.77,1.99814502]
[1768828652104,9.59009813,133.8,133.77,1.99814502]
[1768828654436,2.11624404,133.8,133.77,1.99814502]
[1768828654606,7.47354492,133.81,133.78,1.99814502]
[1768828655020,9.58978896,133.81,133.78,1.99814502]
[1768828655525,2.11624404,133.83,133.8,1.99814502]
[1768828656803,9.58863007,133.83,133.8,1.99814502]
[1768828658534,2.11624404,133.82,133.79,0.14216157]
[1768828659137,12.59336651,133.82,133.79,0.14216157]
[1768828659431,12.59336651,133.82,133.79,2.14030659]
[1768828660133,2.11624404,133.82,133.79,2.14030659]
[1768828660315,1.94201705,133.81,133.78,2.01366469]
[1768828661733,1.94201705,133.81,133.78,5.01799882]
[1768828662132,7.47291082,133.82,133.78,3.00433413]
[1768828662430,1.94201705,133.81,133.78,12.49289915]
[1768828663514,63.52298406,133.81,133.73,17.21388512]
[1768828663714,4.94635118,133.8,133.75,5.01799882]
[1768828663914,4.94635118,133.8,133.76,5.01799882]
[1768828663915,1.94201705,133.8,133.76,5.01799882]
[1768828664219,1.94201705,133.8,133.76,2.01366469]
[1768828664522,1.94201705,133.8,133.77,3.00433413]
[1768828664942,9.4159759,133.8,133.77,3.00433413]
[1768828665729,9.4159759,133.8,133.76,5.01799882]
[1768828667938,9.4159759,133.8,133.77,3.00433413]
[1768828668939,9.4159759,133.8,133.77,5.01799882]
[1768828669538,9.4159759,133.8,133.77,2.01366469]
[1768828671727,9.4159759,133.8,133.77,5.01799882]
[1768828672450,9.4159759,133.8,133.77,2.01366469]
[1768828672657,9.4159759,133.8,133.77,5.01799882]
[1768828674041,9.4159759,133.8,133.77,2.01366469]
[1768828674234,9.4159759,133.8,133.77,5.01799882]
[1768828674946,9.4159759,133.8,133.77,5.01829235]
[1768828681454,7.47336254,133.81,133.79,1.96237183]
[1768828681751,9.57506523,133.83,133.8,1.96237183]
[1768828682951,9.57506523,133.83,133.8,4.96699949]
[1768828683648,7.4726915,133.83,133.81,4.96699949]
[1768828683860,9.57359303,133.85,133.82,4.96699949]
[1768828684049,9.57312424,133.86,133.83,4.96699949]
[1768828684227,2.10237373,133.87,133.84,1.96237183]
[1768828684430,1.86837373,133.89,133.86,4.96699949]
[1768828684641,1.86837373,133.89,133.86,1.96237183]
[1768828684841,4.87300139,133.89,133.84,1.96237183]
[1768828685040,4.87300139,133.89,133.83,0.14216157]
[1768828685041,7.46937556,133.88,133.85,4.96699949]
[1768828685557,9.33735872,133.89,133.86,4.96699949]
[1768828687051,9.33735872,133.89,133.86,1.96237183]
[1768828695057,9.33735872,133.89,133.86,4.96699949]
[1768828696227,9.33735872,133.89,133.86,1.96237183]
[1768828697956,7.46898499,133.89,133.85,3.00462766]
[1768828698169,2.10237373,133.88,133.85,4.96699949]
[1768828698557,2.10237373,133.88,133.85,3.00462766]
[1768828698747,2.10237373,133.88,133.86,1.96237183]
[1768828699160,7.46898499,133.89,133.86,1.96237183]
[1768828699347,9.57135872,133.89,133.86,1.96237183]
[1768828699659,2.10237373,133.88,133.85,4.96699949]
[1768828700761,7.46993351,133.87,133.85,4.96699949]
[1768828701865,2.10237373,133.86,133.83,1.96237183]
[1768828702160,3.00462766,133.86,133.81,4.96699949]
[1768828702338,2.10237373,133.85,133.81,4.96699949]
[1768828702938,9.57387682,133.85,133.81,4.96699949]
[1768828703157,12.57850448,133.85,133.82,2.01725383]
[1768828703355,1.90036988,133.83,133.8,2.01725383]
[1768828703556,1.84036989,133.83,133.8,2.01725383]
[1768828703762,1.7803699,133.83,133.8,2.01725383]
[1768828703953,4.78499756,133.83,133.8,2.01725383]
[1768828704266,1.7803699,133.83,133.8,2.01725383]
[1768828704463,1.72036991,133.83,133.8,2.01725383]
[1768828704670,1.66036992,133.83,133.8,2.01725383]
[1768828704966,9.13263808,133.83,133.8,2.01725383]
[1768828707256,12.13726574,133.83,133.8,2.01725383]
[1768828708160,4.90499754,133.82,133.79,2.01725383]
[1768828711143,4.84499755,133.82,133.79,2.01725383]
[1768828711843,12.31807237,133.82,133.79,2.01725383]
[1768828712046,3.00462766,133.81,133.79,2.01725383]
[1768828712342,9.3734447,133.82,133.79,2.01725383]
[1768828712553,12.37807236,133.82,133.79,2.01725383]
[1768828717270,1.90036988,133.8,133.76,3.00462766]
[1768828717581,4.90499754,133.8,133.77,2.01725383]
[1768828717878,4.84499755,133.8,133.77,2.01725383]
[1768828718948,12.31905787,133.8,133.77,2.01725383]
[1768828719141,10.47815095,133.81,133.77,2.01725383]
[1768828719345,3.00462766,133.82,133.78,2.01725383]
[1768828719644,1.9417023,133.82,133.78,2.01725383]
[1768828719861,1.9417023,133.82,133.78,5.02188149]
[1768828720075,1.9417023,133.82,133.79,2.02120311]
[1768828720747,9.4147838,133.82,133.79,2.02120311]
[1768828724474,1.93793031,133.81,133.78,2.02120311]
[1768828725175,12.41490155,133.82,133.78,2.02120311]
[1768828726572,29.15952054,133.82,133.78,2.02120311]
[1768828726770,4.9410906,133.81,133.78,2.02120311]
[1768828728575,7.47384155,133.8,133.78,2.02120311]
[1768828729882,12.4127937,133.8,133.76,2.02120311]
[1768828730083,3.00462766,133.79,133.76,2.02120311]
[1768828730254,12.4127937,133.8,133.76,2.02120311]
[1768828733460,12.35279371,133.8,133.75,2.1665609]
[1768828734490,3.00462766,133.79,133.75,2.1665609]
[1768828734782,9.34816605,133.8,133.75,2.1665609]
[1768828734987,12.35279371,133.8,133.76,2.02439933]
[1768828735589,3.00462766,133.79,133.76,2.02439933]
[1768828736398,4.93359904,133.79,133.76,2.02439933]
[1768828736786,3.00462766,133.79,133.76,2.02439933]
[1768828736988,1.92897138,133.79,133.76,2.02439933]
[1768828737169,3.00555616,133.78,133.76,2.02439933]
[1768828737371,4.93452754,133.79,133.76,2.02439933]
[1768828738110,12.40915316,133.79,133.76,2.02439933]
[1768828738408,10.48018178,133.79,133.76,2.02439933]
[1768828740402,7.47462562,133.79,133.76,2.02439933]
[1768828740598,10.48018178,133.79,133.76,2.02439933]
[1768828740900,12.40665651,133.79,133.76,2.02439933]
[1768828748689,1.92181458,133.78,133.75,2.02439933]
[1768828748997,4.92737074,133.78,133.75,1.52439933]
[1768828749518,3.00555616,133.77,133.75,1.52439933]
[1768828749817,4.96382412,133.76,133.71,23.30147666]
[1768828750009,3.00555616,133.75,133.71,23.30147666]
[1768828750214,4.96382412,133.76,133.71,30.78012834]
[1768828751113,12.44044999,133.76,133.72,2.02439933]
[1768828751312,3.00555616,133.75,133.72,2.02439933]
[1768828751702,12.44044999,133.76,133.72,2.02439933]
[1768828752414,10.48228617,133.75,133.72,2.02439933]
[1768828753205,12.44055413,133.75,133.72,2.02439933]
[1768828753406,12.3805541,133.75,133.72,2.02439933]
[1768828753608,7.47673001,133.75,133.72,2.02439933]
[1768828753907,10.48228617,133.75,133.72,2.02439933]
[1768828756798,12.44055413,133.75,133.72,2.02439933]
[1768828757001,10.48228617,133.75,133.72,2.02439933]
[1768828757718,7.47673001,133.75,133.72,2.02439933]
[1768828758818,1.95826796,133.74,133.72,2.02439933]
[1768828759002,9.43560772,133.74,133.72,2.02439933]
[1768828759619,7.47664044,133.75,133.72,2.02439933]
[1768828760010,1.95826796,133.78,133.73,2.02439933]
[1768828760214,9.43340274,133.78,133.75,2.02439933]
[1768828760522,12.4389589,133.78,133.75,2.02439933]
[1768828761019,4.96382412,133.77,133.74,2.02439933]
[1768828762332,9.43433805,133.77,133.74,2.02439933]
[1768828765925,7.47607009,133.77,133.74,2.02439933]
[1768828766225,7.47607009,133.77,133.75,1.87160671]
[1768828769902,9.51493861,133.77,133.75,1.87160671]
[1768828771110,9.51493861,133.77,133.74,1.87160671]
[1768828782844,12.52049477,133.77,133.74,1.87160671]
[1768828783048,9.51493861,133.77,133.74,1.87160671]
[1768828783341,1.92711684,133.76,133.73,2.00369687]
[1768828784947,9.40339441,133.76,133.73,2.00369687]
[1768828795658,12.40895057,133.76,133.73,2.00369687]
[1768828798641,7.47627757,133.76,133.73,2.00369687]
[1768828800642,7.47571703,133.77,133.74,1.90360027]
[1768828800842,9.42952281,133.77,133.74,1.90360027]
[1768828807072,12.43613438,133.77,133.74,1.90360027]
[1768828807271,7.47571703,133.77,133.74,1.90360027]
[1768828807885,10.4823286,133.77,133.74,1.90360027]
[1768828808181,12.43613438,133.77,133.74,1.90360027]
[1768828810079,9.42952281,133.77,133.74,1.90360027]
[1768828810380,12.43613438,133.77,133.74,1.90360027]
[1768828811669,1.95380578,133.76,133.72,7.47795697]
[1768828811871,1.95380578,133.75,133.72,1.90360027]
[1768828812651,9.43065518,133.75,133.72,1.90360027]
[1768828814376,12.43726675,133.75,133.72,1.90360027]
[1768828815762,1.95380578,133.74,133.72,1.90360027]
[1768828816070,9.43114895,133.74,133.71,25.20507693]
[1768828816291,1.95380578,133.73,133.71,23.30147666]
[1768828816468,1.89380579,133.73,133.71,23.30147666]
[1768828817955,3.00661157,133.72,133.69,1.90360027]
[1768828818154,7.47782928,133.73,133.69,1.90360027]
[1768828818354,4.96041735,133.72,133.69,1.90360027]
[1768828818796,1.95380578,133.71,133.69,1.90360027]
[1768828819083,1.95380578,133.72,133.69,1.90360027]
[1768828820375,9.43251081,133.72,133.68,1.90360027]
[1768828820580,1.95380578,133.71,133.67,1.90360027]
[1768828820765,3.00661157,133.7,133.67,1.90360027]